[Event "Chpt Reg Jeunes Occitanie 2026 - Espalion"]
[Site "Espalion, France"]
[Round "3.17"]
[ECO "?"]
[Annotator "?"]
[TimeControl "1h30 + 30sec/cp"]

1. d4 {[%clk 1:30:30]} 1... d5 {[%clk 1:30:30]} 2. c4 {[%clk 1:30:30]} 2... e6
{[%clk 1:30:30]} 3. Nc3 {[%clk 1:30:30]} 3... Nf6 {[%clk 1:30:30]} 4. Bg5
{[%clk 1:30:30]} 4... Be7 {[%clk 1:30:30]} 5. Nf3 {[%clk 1:30:30]} 5... c6
{[%clk 1:30:30]} 6. e3 {[%clk 1:30:30]} 6... Nbd7 {[%clk 1:30:30]} 7. c5
{[%clk 1:30:30]} 7... O-O {[%clk 1:30:30]} 8. Bd3 {[%clk 1:30:30]} 8... h6
{[%clk 1:30:30]} 9. Bh4 {[%clk 1:31:58][%emt 0:30:05]} 9... b6 {[%clk
1:30:57][%emt 0:01:02]} 10. b4 {[%clk 1:32:13][%emt 0:00:14]} 10... Bb7 {[%clk
1:30:30][%emt 0:00:58]} 11. O-O {[%clk 1:32:07][%emt 0:00:36]} 11... Rc8
{[%clk 1:29:57][%emt 0:01:03]} 12. Rb1 {[%clk 1:32:21][%emt 0:00:16]} 12...
Re8 {[%clk 1:30:07][%emt 0:00:20]} 13. Re1 {[%clk 1:31:07][%emt 0:01:44]}
13... Ra8 {[%clk 1:22:46][%emt 0:07:51]} 14. Rb3 {[%clk 1:27:12][%emt 0:04:26]}
 14... b5 {[%clk 1:22:29][%emt 0:00:47]} 15. Qc2 {[%clk 1:23:45][%emt 0:03:57]}
 15... a6 {[%clk 1:18:45][%emt 0:04:14]} 16. a3 {[%clk 1:21:10][%emt 0:03:05]}
16... Bf8 {[%clk 1:18:22][%emt 0:00:50]} 17. e4 {[%clk 1:19:14][%emt 0:02:29]}
17... dxe4 {[%clk 1:18:25][%emt 0:00:26]} 18. Nxe4 {[%clk 1:19:37][%emt
0:00:08]} 18... Be7 {[%clk 1:18:36][%emt 0:00:19]} 19. Nc3 {[%clk
1:17:13][%emt 0:02:53]} 19... Nd5 {[%clk 1:17:45][%emt 0:01:22]} 20. Bxe7
{[%clk 1:15:16][%emt 0:02:27]} 20... Rxe7 {[%clk 1:17:07][%emt 0:01:07]} 21.
Nxd5 {[%clk 1:15:38][%emt 0:00:08]} 21... exd5 {[%clk 1:17:06][%emt 0:00:31]}
22. Rxe7 {[%clk 1:15:01][%emt 0:01:07]} 22... Qxe7 {[%clk 1:17:25][%emt
0:00:12]} 23. Bh7+ {[%clk 1:14:19][%emt 0:01:12]} 23... Kf8 {[%clk
1:17:19][%emt 0:00:34]} 24. Re3 {[%clk 1:14:41][%emt 0:00:09]} 24... Qf6
{[%clk 1:17:09][%emt 0:00:40]} 25. Bf5 {[%clk 1:14:50][%emt 0:00:22]} 25...
Rd8 {[%clk 1:17:00][%emt 0:00:37]} 26. Ne5 {[%clk 1:14:18][%emt 0:01:03]}
26... Nxe5 {[%clk 1:17:22][%emt 0:00:10]} 27. Rxe5 {[%clk 1:14:35][%emt
0:00:12]} 27... g6 {[%clk 1:17:07][%emt 0:00:45]} 28. Bd3 {[%clk 1:13:13][%emt
0:01:52]} 28... Qf4 {[%clk 1:17:19][%emt 0:00:18]} 29. Qc3 {[%clk
1:09:02][%emt 0:04:41]} 29... Re8 {[%clk 1:17:05][%emt 0:00:42]} 30. Rxe8+
{[%emt 0:00:47]} 30... Kxe8 {[%clk 1:17:10][%emt 0:00:23]} 31. Qe1+ {[%clk
1:09:11][%emt 0:00:07]} 31... Kf8 {[%clk 1:16:43][%emt 0:00:57]} 32. Qe3
{[%clk 1:09:23][%emt 0:00:19]} 32... Qxe3 {[%clk 1:17:07][%emt 0:00:06]} 33.
fxe3 {[%clk 1:09:42][%emt 0:00:11]} 33... f5 {[%clk 1:17:32][%emt 0:00:05]}
34. Kf2 {[%clk 1:09:39][%emt 0:00:33]} 34... Ke7 {[%clk 1:17:53][%emt 0:00:07]}
 35. Kf3 {[%clk 1:09:58][%emt 0:00:13]} 35... Bc8 {[%clk 1:18:14][%emt
0:00:09]} 36. Kf4 {[%clk 1:09:53][%emt 0:00:34]} 36... Kf6 {[%clk
1:18:33][%emt 0:00:10]} 37. h4 {[%clk 1:09:37][%emt 0:00:48]} 37... g5+ {[%clk
1:18:29][%emt 0:00:33]} 38. hxg5+ {[%clk 1:10:00][%emt 0:00:07]} 38... hxg5+
{[%clk 1:18:50][%emt 0:00:09]} 39. Kg3 {[%clk 1:09:49][%emt 0:00:42]} 39...
Be6 {[%clk 1:18:58][%emt 0:00:21]} 40. Kf3 {[%clk 1:09:57][%emt 0:00:22]}
40... Kg7 {[%clk 1:18:48][%emt 0:00:38]} 41. Kg3 {[%clk 1:09:30][%emt 0:01:00]}
 41... Kf6 {[%clk 1:19:11][%emt 0:00:07]} 42. Be2 {[%clk 1:09:33][%emt
0:00:26]} 42... Bf7 {[%clk 1:19:31][%emt 0:00:10]} 43. Kh3 {[%clk
1:09:38][%emt 0:00:26]} 43... Bg6 {[%clk 1:19:40][%emt 0:00:21]} 44. Kg3
{[%clk 1:09:15][%emt 0:00:53]} 44... Bf7 {[%clk 1:19:33][%emt 0:00:37]} 45.
Kh3 {[%clk 1:09:33][%emt 0:00:11]} 45... Be6 {[%clk 1:19:22][%emt 0:00:41]}
46. Kg3 {[%clk 1:09:48][%emt 0:00:16]} 46... Kg6 {[%clk 1:19:43][%emt 0:00:08]}
 47. Bd1 {[%clk 1:09:50][%emt 0:00:28]} 47... Bd7 {[%clk 1:19:14][%emt
0:00:59]} 48. Be2 {[%clk 1:09:59][%emt 0:00:21]} 48... Kh6 {[%clk
1:19:23][%emt 0:00:19]} 49. Bd1 {[%clk 1:09:58][%emt 0:00:33]} 49... Be8
{[%clk 1:19:45][%emt 0:00:08]} 50. Kh3 {[%clk 1:08:53][%emt 0:01:34]} 50...
Bh5 {[%clk 1:19:58][%emt 0:00:17]} 51. Bxh5 {[%clk 1:09:16][%emt 0:00:07]}
51... Kxh5 {[%clk 1:20:15][%emt 0:00:14]} 52. g3 {[%clk 1:09:41][%emt 0:00:05]}
 52... Kg6 {[%clk 1:20:04][%emt 0:00:41]} 53. Kg2 {[%clk 1:09:59][%emt
0:00:12]} 53... Kf6 {[%clk 1:20:12][%emt 0:00:22]} 54. Kf3 {[%clk
1:10:22][%emt 0:00:07]} 1/2-1/2

[White "LABARBE, Gabriel"]
[Black "ROUANET, Henri"]
[WhiteElo "1731"]
[BlackElo "1569"]
[Result "1-0"]
[Date "2026.03.05"]

[Event "Chpt Reg Jeunes Occitanie 2026 - Espalion"]
[Site "Espalion, France"]
[Round "3.18"]
[ECO "?"]
[Annotator "?"]
[TimeControl "1h30 + 30sec/cp"]

1. e4 Nc6 2. Nf3 e5 3. d4 exd4 4. Bc4 Nf6 5. e5 Ng4 6. Bxf7+ Kxf7 7. Ng5+ Kg8
8. Qxg4 Bb4+ 9. c3 dxc3 10. Qc4+ d5 11. exd6+ 1-0

[White "JOYEUX, Gaspard"]
[Black "BAROUKH, Pau"]
[WhiteElo "1559"]
[BlackElo "1712"]
[Result "0-1"]
[Date "2026.03.05"]

[Event "Chpt Reg Jeunes Occitanie 2026 - Espalion"]
[Site "Espalion, France"]
[Round "3.19"]
[ECO "?"]
[Annotator "?"]
[TimeControl "1h30 + 30sec/cp"]

1. e4 {[%clk 1:30:30]} 1... e6 {[%clk 1:30:30]} 2. d4 {[%clk 1:30:30]} 2... d5
{[%clk 1:30:30]} 3. e5 {[%clk 1:30:30]} 3... c5 {[%clk 1:30:30]} 4. c3 {[%clk
1:30:30]} 4... Nc6 {[%clk 1:30:30]} 5. Nf3 {[%clk 1:30:30]} 5... cxd4 {[%clk
1:30:30]} 6. Bd3 {[%clk 1:29:12][%emt 0:01:00]} 6... dxc3 {[%clk 1:29:13][%emt
0:01:30]} 7. Nxc3 {[%clk 1:29:13][%emt 0:00:29]} 7... Bb4 {[%clk 1:28:33][%emt
0:01:10]} 8. O-O {[%clk 1:27:57][%emt 0:01:46]} 8... f6 {[%clk 1:27:32][%emt
0:01:32]} 9. Bf4 {[%clk 1:24:25][%emt 0:04:01]} 9... fxe5 {[%clk 1:26:22][%emt
0:01:40]} 10. Nxe5 {[%clk 1:18:59][%emt 0:05:56]} 10... Nf6 {[%clk
1:25:12][%emt 0:01:39]} 11. Nb5 {[%clk 1:17:34][%emt 0:01:56]} 11... O-O
{[%clk 1:24:23][%emt 0:01:20]} 12. Nxc6 {[%clk 1:14:11][%emt 0:03:53]} 12...
bxc6 {[%clk 1:24:19][%emt 0:00:33]} 13. Nc7 {[%clk 1:14:22][%emt 0:00:19]}
13... Ne8 {[%clk 1:24:18][%emt 0:00:31]} 14. Nxa8 {[%clk 1:14:05][%emt
0:00:48]} 14... Rxf4 {[%clk 1:24:30][%emt 0:00:18]} 15. Qa4 {[%clk
1:13:13][%emt 0:01:22]} 15... Bb7 {[%clk 1:24:28][%emt 0:00:31]} 16. Qxa7
{[%clk 1:12:39][%emt 0:01:04]} 16... Bxa8 {[%clk 1:24:32][%emt 0:00:25]} 17.
Qe3 {[%clk 1:10:32][%emt 0:02:39]} 17... Qd6 {[%clk 1:20:26][%emt 0:04:35]}
18. Qa7 {[%clk 1:07:34][%emt 0:03:29]} 18... Nc7 {[%clk 1:20:30][%emt 0:00:26]}
 19. Rac1 {[%clk 1:06:35][%emt 0:01:29]} 19... Rf8 {[%clk 1:17:16][%emt
0:03:43]} 20. Rfd1 {[%clk 1:04:12][%emt 0:02:54]} 20... Qf4 {[%clk
1:16:37][%emt 0:01:09]} 21. g3 {[%clk 1:01:00][%emt 0:03:42]} 21... Qf7 {[%clk
1:14:55][%emt 0:02:12]} 22. a3 {[%clk 0:57:32][%emt 0:03:58]} 22... Bd6 {[%clk
1:14:47][%emt 0:00:38]} 23. Bc2 {[%clk 0:56:17][%emt 0:01:45]} 23... c5 {[%clk
1:13:37][%emt 0:01:40]} 24. Ba4 {[%clk 0:55:39][%emt 0:01:08]} 24... Qxf2+
{[%clk 1:12:55][%emt 0:01:12]} 25. Kh1 {[%clk 0:55:59][%emt 0:00:10]} 25...
d4+ {[%clk 1:13:15][%emt 0:00:11]} 0-1

[White "TOURETTE, Maxence"]
[Black "BENNANI, Johan"]
[WhiteElo "1709"]
[BlackElo "1531"]
[Result "1-0"]
[Date "2026.03.05"]

[Event "Chpt Reg Jeunes Occitanie 2026 - Espalion"]
[Site "Espalion, France"]
[Round "3.20"]
[ECO "?"]
[Annotator "?"]
[TimeControl "1h30 + 30sec/cp"]

1. d4 {[%clk 1:31:10]} 1... d5 {[%clk 1:29:20]} 2. Nf3 {[%clk 1:31:10]} 2...
Nf6 {[%clk 1:29:20]} 3. e3 {[%clk 1:31:10]} 3... Bg4 {[%clk 1:29:20]} 4. b3
{[%clk 1:31:10]} 4... Nc6 {[%clk 1:29:20]} 5. Be2 {[%clk 1:31:10]} 5... a6 6.
Bb2 {[%clk 1:31:10]} 6... e6 {[%clk 1:29:20]} 7. Nbd2 {[%clk 1:31:19][%emt
0:16:22]} 7... Bxf3 {[%clk 1:24:24][%emt 0:05:27]} 8. Bxf3 {[%clk
1:25:20][%emt 0:06:30]} 8... Bd6 {[%clk 1:21:14][%emt 0:03:40]} 9. c4 {[%clk
1:20:36][%emt 0:05:14]} 9... Ne7 {[%clk 1:14:26][%emt 0:07:18]} 10. c5 {[%clk
1:18:53][%emt 0:02:13]} 10... Nc6 {[%clk 1:08:20][%emt 0:06:37]} 11. cxd6
{[%clk 1:18:18][%emt 0:01:05]} 11... cxd6 {[%clk 1:07:14][%emt 0:01:35]} 12.
O-O {[%clk 1:15:18][%emt 0:03:30]} 12... O-O {[%clk 1:06:52][%emt 0:00:52]}
13. e4 {[%clk 1:10:22][%emt 0:05:26]} 13... dxe4 {[%clk 1:04:45][%emt 0:02:38]}
 14. Nxe4 {[%clk 1:06:23][%emt 0:04:29]} 14... d5 {[%clk 1:00:18][%emt
0:04:56]} 15. Ng3 {[%clk 1:04:39][%emt 0:02:14]} 15... Re8 {[%clk
0:58:48][%emt 0:02:00]} 16. Re1 {[%clk 0:57:46][%emt 0:07:23]} 16... Rc8
{[%clk 0:58:09][%emt 0:01:09]} 17. Qd2 {[%clk 0:53:08][%emt 0:05:08]} 17...
Qb6 {[%clk 0:56:42][%emt 0:01:58]} 18. Rac1 {[%clk 0:49:52][%emt 0:03:46]}
18... Qb5 {[%clk 0:55:47][%emt 0:01:25]} 19. Rc5 {[%clk 0:47:01][%emt 0:03:20]}
 19... Qb4 {[%clk 0:52:37][%emt 0:03:41]} 20. Bc3 {[%clk 0:43:43][%emt
0:03:47]} 20... Qb6 {[%clk 0:52:04][%emt 0:00:45]} 21. Bb2 {[%clk
0:41:40][%emt 0:02:51]} 21... Nd7 {[%clk 0:51:02][%emt 0:01:32]} 22. Rcc1
{[%clk 0:37:48][%emt 0:04:23]} 22... Qb5 {[%clk 0:49:02][%emt 0:02:29]} 23.
Ba3 {[%clk 0:34:12][%emt 0:04:06]} 23... Qb6 {[%clk 0:47:39][%emt 0:01:53]}
24. Ne2 {[%clk 0:32:23][%emt 0:02:19]} 24... Qa5 {[%clk 0:44:50][%emt 0:03:20]}
 25. Qxa5 {[%clk 0:31:07][%emt 0:01:46]} 25... Nxa5 {[%clk 0:45:11][%emt
0:00:07]} 26. Bd6 {[%clk 0:30:44][%emt 0:00:53]} 26... Nc6 {[%clk
0:44:56][%emt 0:00:46]} 27. Rc2 {[%clk 0:29:55][%emt 0:01:19]} 27... e5 {[%clk
0:43:16][%emt 0:02:09]} 28. dxe5 {[%clk 0:29:12][%emt 0:01:13]} 28... Ncxe5
{[%clk 0:42:56][%emt 0:00:50]} 29. Rxc8 {[%clk 0:27:38][%emt 0:02:04]} 29...
Nxf3+ {[%clk 0:43:18][%emt 0:00:08]} 30. gxf3 {[%clk 0:27:39][%emt 0:00:29]}
30... Rxc8 {[%clk 0:43:12][%emt 0:00:36]} 31. Nc3 {[%clk 0:27:14][%emt
0:00:55]} 31... g6 {[%clk 0:42:41][%emt 0:01:01]} 32. Nxd5 {[%clk
0:26:58][%emt 0:00:46]} 32... Rc2 {[%clk 0:41:30][%emt 0:01:41]} 33. Re7
{[%clk 0:27:09][%emt 0:00:19]} 33... Rd2 {[%clk 0:41:10][%emt 0:00:51]} 34.
Rxd7 {[%clk 0:27:31][%emt 0:00:08]} 34... Rxd5 {[%clk 0:41:30][%emt 0:00:10]}
35. Rd8+ {[%clk 0:27:50][%emt 0:00:12]} 1-0

[White "LEMOINE, Luka"]
[Black "BENYETTOU, Louis"]
[WhiteElo "1691"]
[BlackElo "1841"]
[Result "0-1"]
[Date "2026.03.05"]

[Event "Chpt Reg Jeunes Occitanie 2026 - Espalion"]
[Site "Espalion, France"]
[Round "4.16"]
[ECO "?"]
[Annotator "?"]
[TimeControl "1h30 + 30sec/cp"]

1. e4 {[%clk 1:30:48][%emt 0:00:11]} 1... e6 {[%clk 1:30:56][%emt 0:00:05]} 2.
d4 {[%clk 1:30:56][%emt 0:00:21]} 2... d5 {[%clk 1:31:23][%emt 0:00:04]} 3. e5
{[%clk 1:31:06][%emt 0:00:19]} 3... c5 {[%clk 1:31:49][%emt 0:00:04]} 4. c3
{[%clk 1:31:21][%emt 0:00:16]} 4... Nc6 {[%clk 1:32:11][%emt 0:00:09]} 5. Nf3
{[%clk 1:30:58][%emt 0:00:52]} 5... Qb6 {[%clk 1:32:35][%emt 0:00:06]} 6. Be2
{[%clk 1:30:53][%emt 0:00:34]} 6... cxd4 {[%clk 1:32:56][%emt 0:00:09]} 7.
cxd4 {[%clk 1:31:13][%emt 0:00:11]} 7... Nh6 {[%clk 1:33:19][%emt 0:00:08]} 8.
Bxh6 {[%clk 1:22:51][%emt 0:08:51]} 8... Qxb2 {[%clk 1:33:31][%emt 0:00:18]}
9. Nbd2 {[%clk 1:16:05][%emt 0:07:15]} 9... gxh6 {[%clk 1:33:44][%emt 0:00:16]}
 10. O-O {[%clk 1:13:56][%emt 0:02:40]} 10... Nxd4 {[%clk 1:33:59][%emt
0:00:15]} 11. Qa4+ {[%clk 1:14:18][%emt 0:00:07]} 11... Nc6 {[%clk
1:34:18][%emt 0:00:12]} 12. Rab1 {[%clk 1:14:01][%emt 0:00:47]} 12... Qa3
{[%clk 1:34:16][%emt 0:00:32]} 13. Bb5 {[%emt 0:18:17]} 13... Bd7 {[%clk
1:18:34][%emt 0:00:01]} 14. Qxa3 {[%clk 1:01:23][%emt 0:11:33]} 14... Bxa3
{[%clk 1:18:48][%emt 0:00:15]} 15. Rb3 {[%clk 1:01:24][%emt 0:00:30]} 15...
Bc5 {[%clk 1:18:09][%emt 0:01:08]} 16. Rc1 {[%clk 1:01:22][%emt 0:00:33]}
16... Bb6 {[%clk 1:18:20][%emt 0:00:19]} 17. Nf1 {[%emt 0:13:57]} 17... Ke7
{[%clk 1:07:34][%emt 0:00:02]} 18. Ne3 {[%clk 0:54:50][%emt 0:04:50]} 18...
Rac8 {[%clk 1:05:12][%emt 0:02:51]} 19. Re1 {[%clk 0:53:25][%emt 0:01:55]}
19... Bxe3 {[%clk 0:58:20][%emt 0:07:21]} 20. fxe3 {[%clk 0:53:03][%emt
0:00:51]} 20... Na5 {[%clk 0:56:51][%emt 0:02:01]} 21. Bxd7 {[%clk
0:50:53][%emt 0:02:40]} 21... Kxd7 {[%clk 0:57:02][%emt 0:00:18]} 22. Rb5
{[%clk 0:50:46][%emt 0:00:38]} 22... b6 {[%clk 0:57:09][%emt 0:00:23]} 23. Nd4
{[%clk 0:49:58][%emt 0:01:18]} 23... Ke7 {[%clk 0:54:40][%emt 0:02:59]} 24.
Rf1 {[%clk 0:49:06][%emt 0:01:22]} 24... Rhg8 {[%clk 0:50:22][%emt 0:04:48]}
25. Rb2 {[%emt 0:03:52]} 25... Nc4 {[%clk 0:49:34]} 26. Rbf2 {[%emt 0:01:23]}
26... Nxe5 {[%clk 0:48:46][%emt 0:00:02]} 27. Nb5 {[%clk 0:47:28][%emt
0:00:27]} 27... a6 {[%clk 0:47:32][%emt 0:01:42]} 28. Nd4 {[%clk 0:47:35][%emt
0:00:24]} 28... f5 {[%emt 0:01:01]} 29. Rf4 {[%clk 0:47:08][%emt 0:00:54]}
29... Rg4 {[%clk 0:45:33][%emt 0:02:01]} 30. h3 {[%clk 0:46:03][%emt 0:01:35]}
30... Rg6 {[%clk 0:44:03][%emt 0:01:59]} 31. Rb1 {[%emt 0:04:08]} 31... Nc4
{[%emt 0:00:42]} 32. Rb3 {[%clk 0:44:31]} 32... Rcg8 {[%clk 0:41:02][%emt
0:01:44]} 33. Rf2 {[%clk 0:43:43][%emt 0:01:18]} 33... Rg3 {[%clk
0:39:59][%emt 0:01:34]} 34. Nc2 {[%clk 0:39:55][%emt 0:04:18]} 34... Rxh3
{[%clk 0:36:42][%emt 0:03:47]} 35. Kf1 {[%clk 0:38:41][%emt 0:01:44]} 35...
Rh1+ {[%clk 0:35:57][%emt 0:01:14]} 36. Ke2 {[%clk 0:39:05][%emt 0:00:06]}
36... Rg1 {[%clk 0:35:20][%emt 0:01:07]} 37. Ne1 {[%clk 0:38:45][%emt 0:00:51]}
 37... Rh1 {[%clk 0:34:42][%emt 0:01:07]} 38. Nf3 {[%clk 0:38:30][%emt
0:00:45]} 38... Ra1 {[%clk 0:33:01][%emt 0:02:11]} 39. Kd3 {[%clk
0:38:37][%emt 0:00:22]} 39... Rc8 {[%clk 0:32:38][%emt 0:00:53]} 40. Rc2
{[%clk 0:38:12][%emt 0:00:56]} 40... Kd6 {[%clk 0:31:08][%emt 0:02:00]} 41.
Ke2 {[%clk 0:37:19][%emt 0:01:24]} 41... Rc5 {[%clk 0:30:37][%emt 0:01:00]}
42. Nd4 {[%clk 0:36:47][%emt 0:01:02]} 42... Ra5 {[%clk 0:29:57][%emt 0:01:11]}
 0-1

[White "DUBUC SAFFRE, Felix"]
[Black "LABARBE, Gabriel"]
[WhiteElo "1616"]
[BlackElo "1731"]
[Result "0-1"]
[Date "2026.03.05"]

[Event "Chpt Reg Jeunes Occitanie 2026 - Espalion"]
[Site "Espalion, France"]
[Round "4.17"]
[ECO "?"]
[Annotator "?"]
[TimeControl "1h30 + 30sec/cp"]

1. d4 {[%clk 1:30:56][%emt 0:00:03]} 1... Nf6 {[%clk 1:30:53][%emt 0:00:07]}
2. c4 {[%clk 1:31:16][%emt 0:00:12]} 2... c5 {[%clk 1:31:16][%emt 0:00:06]} 3.
d5 {[%clk 1:31:30][%emt 0:00:16]} 3... e6 {[%clk 1:31:38][%emt 0:00:09]} 4.
Nc3 {[%clk 1:31:18][%emt 0:00:41]} 4... exd5 {[%clk 1:32:01][%emt 0:00:08]} 5.
cxd5 {[%clk 1:31:29][%emt 0:00:18]} 5... d6 {[%clk 1:32:11][%emt 0:00:20]} 6.
e4 {[%clk 1:31:50][%emt 0:00:09]} 6... g6 {[%clk 1:32:28][%emt 0:00:14]} 7. f4
{[%clk 1:31:30][%emt 0:00:50]} 7... Bg7 {[%clk 1:32:43][%emt 0:00:15]} 8. Bb5+
{[%clk 1:31:51][%emt 0:00:09]} 8... Bd7 {[%clk 1:32:48][%emt 0:00:24]} 9.
Bxd7+ {[%clk 1:27:28][%emt 0:04:53]} 9... Nbxd7 {[%clk 1:32:53][%emt 0:00:25]}
10. Nf3 {[%clk 1:27:36][%emt 0:00:22]} 10... O-O {[%clk 1:33:04][%emt 0:00:19]}
 11. O-O {[%clk 1:27:35][%emt 0:00:32]} 11... Re8 {[%clk 1:32:05][%emt
0:01:29]} 12. Re1 {[%clk 1:24:05][%emt 0:04:00]} 12... a6 {[%clk 1:27:58][%emt
0:04:37]} 13. a4 {[%clk 1:23:32][%emt 0:01:03]} 13... Rb8 {[%clk 1:27:50][%emt
0:00:37]} 14. a5 {[%clk 1:21:46][%emt 0:02:16]} 14... b5 {[%clk 1:28:13][%emt
0:00:08]} 15. axb6 {[%clk 1:21:58][%emt 0:00:17]} 15... Rxb6 {[%clk
1:28:27][%emt 0:00:16]} 16. Nd2 {[%clk 1:13:13][%emt 0:09:15]} 16... Nh5
{[%clk 1:23:23][%emt 0:05:34]} 17. Nc4 {[%clk 1:00:49][%emt 0:12:54]} 17...
Bd4+ {[%clk 1:20:59][%emt 0:02:53]} 18. Be3 {[%clk 0:46:39][%emt 0:14:41]}
18... Bxe3+ {[%clk 1:14:53][%emt 0:06:37]} 19. Rxe3 {[%clk 0:46:44][%emt
0:00:25]} 19... Nxf4 {[%clk 1:14:56][%emt 0:00:28]} 20. Nxb6 {[%clk
0:41:31][%emt 0:05:43]} 20... Qxb6 {[%clk 1:14:26][%emt 0:00:59]} 21. Qg4
{[%clk 0:24:25][%emt 0:17:36]} 21... Ne5 {[%clk 1:09:08][%emt 0:05:47]} 22.
Qxf4 {[%clk 0:23:14][%emt 0:01:41]} 22... c4 {[%clk 1:09:19][%emt 0:00:19]}
23. Kh1 {[%clk 0:14:43][%emt 0:10:39]} 23... Rb8 {[%clk 1:16:18][%emt 0:01:28]}
 24. Rb1 {[%clk 0:09:20][%emt 0:05:55]} 24... Qd4 {[%clk 1:15:44][%emt
0:01:03]} 25. Rd1 {[%clk 0:08:33][%emt 0:01:17]} 25... Qc5 {[%clk
1:15:34][%emt 0:00:40]} 26. Rh3 {[%emt 0:01:09]} 26... Nd3 {[%clk 1:15:49]}
27. Rdxd3 {[%clk 0:05:21][%emt 0:03:18]} 27... cxd3 {[%emt 0:04:28]} 28. Qd2
{[%clk 0:01:47]} 28... Qd4 {[%clk 1:10:49][%emt 0:05:34]} 29. Rxd3 {[%clk
0:01:43][%emt 0:00:35]} 29... Qf6 {[%clk 1:11:08][%emt 0:00:11]} 30. Rf3
{[%clk 0:02:01][%emt 0:00:13]} 30... Qg7 {[%clk 1:10:34][%emt 0:01:02]} 31. h3
{[%clk 0:02:16][%emt 0:00:16]} 31... h5 {[%clk 1:10:13][%emt 0:00:51]} 32. Qf4
{[%clk 0:02:26][%emt 0:00:21]} 32... Qf8 {[%clk 1:09:29][%emt 0:01:13]} 33.
Qf6 {[%clk 0:02:00][%emt 0:00:57]} 33... Rxb2 {[%clk 1:09:35][%emt 0:00:23]}
34. Rg3 {[%clk 0:01:37][%emt 0:00:54]} 34... a5 {[%clk 1:09:04][%emt 0:01:00]}
35. Na4 {[%clk 0:01:20][%emt 0:00:48]} 35... Rb4 {[%clk 1:08:46][%emt 0:00:47]}
 36. Ra3 {[%clk 0:01:14][%emt 0:00:37]} 36... Qh6 {[%clk 1:08:42][%emt
0:00:33]} 37. Kh2 {[%clk 0:01:14][%emt 0:00:31]} 37... h4 {[%clk 1:07:26][%emt
0:01:46]} 38. Qd8+ {[%clk 0:01:32][%emt 0:00:12]} 38... Kh7 {[%clk
1:07:41][%emt 0:00:14]} 39. Qxd6 {[%clk 0:01:37][%emt 0:00:26]} 39... Rb1
{[%clk 1:06:57][%emt 0:01:13]} 40. Qc7 {[%clk 0:01:30][%emt 0:00:37]} 40...
Rf1 {[%clk 1:03:44][%emt 0:03:36]} 41. Nc5 {[%clk 0:00:55][%emt 0:01:13]}
41... Qc1 {[%clk 1:03:43][%emt 0:00:31]} 42. Qxf7+ {[%clk 0:01:00][%emt
0:00:25]} 42... Rxf7 {[%clk 1:04:04]} 43. Ne6 {[%clk 0:01:00]} 43... Qxa3
{[%clk 1:04:04]} 44. Ng5+ {[%clk 0:01:00]} 44... Kg8 {[%clk 1:04:04]} 0-1

[White "BAROUKH, Pau"]
[Black "PICARD, Martin"]
[WhiteElo "1712"]
[BlackElo "1505"]
[Result "1-0"]
[Date "2026.03.05"]

[Event "Chpt Reg Jeunes Occitanie 2026 - Espalion"]
[Site "Espalion, France"]
[Round "4.18"]
[ECO "?"]
[Annotator "?"]
[TimeControl "1h30 + 30sec/cp"]

1. e4 {[%clk 1:30:58][%emt 0:00:01]} 1... e6 {[%clk 1:30:53][%emt 0:00:07]} 2.
Nf3 {[%clk 1:31:22]} 2... d5 {[%clk 1:30:53]} 3. Nc3 {[%clk 1:31:22]} 3...
dxe4 {[%clk 1:30:53]} 4. Nxe4 {[%clk 1:31:22]} 4... Nd7 {[%clk 1:30:53]} 5. d4
{[%clk 1:31:22]} 5... Ngf6 {[%clk 1:30:53]} 6. Bd3 {[%clk 1:31:22]} 6... c5
{[%clk 1:30:53]} 7. Bg5 {[%clk 1:31:22]} 7... Be7 {[%clk 1:30:53]} 8. dxc5
{[%clk 1:31:22]} 8... Nxc5 {[%clk 1:30:53]} 9. Bxf6 {[%clk 1:31:22]} 9... Bxf6
{[%clk 1:30:53]} 10. Bb5+ {[%clk 1:31:22]} 10... Bd7 {[%clk 1:30:53]} 11. Nd6+
{[%clk 1:31:22]} 11... Ke7 {[%clk 1:30:53]} 12. Bxd7 {[%clk 1:31:22]} 12...
Qxd7 {[%clk 1:30:53]} 13. Nc4 {[%clk 1:31:22]} 13... b5 {[%clk 1:30:53]} 14.
Nce5 {[%clk 1:31:22]} 14... Qxd1+ {[%clk 1:30:53]} 15. Rxd1 {[%clk 1:31:22]}
15... Rac8 {[%clk 1:30:53]} 16. b4 {[%clk 1:31:22]} 16... Ne4 {[%clk 1:30:53]}
17. Rd7+ {[%clk 1:31:22]} 17... Ke8 {[%clk 1:30:53]} 18. Rxa7 {[%clk 1:31:22]}
18... Rxc2 {[%clk 1:30:53]} 19. O-O {[%clk 1:31:22]} 19... Rc8 {[%clk 1:30:53]}
 20. Nxf7 {[%clk 1:31:22]} 20... Rf8 {[%clk 1:30:53]} 21. N3e5 {[%clk 1:31:22]}
 21... Bxe5 {[%clk 1:30:53]} 22. Nxe5 {[%clk 1:31:22]} 22... Nxf2 {[%clk
1:30:53]} 23. a4 {[%clk 1:31:22]} 23... Rf5 {[%clk 1:30:53]} 24. axb5 {[%clk
1:31:22]} 24... Rxe5 {[%clk 1:30:53]} 25. Rxf2 {[%clk 1:31:22]} 25... Rxb5
{[%clk 1:30:53]} 26. Rxg7 {[%clk 1:31:22]} 26... Rxb4 {[%clk 1:30:53]} 27.
Rg8+ {[%clk 1:31:22]} 27... Kd7 {[%clk 1:30:53]} 28. Rd2+ {[%clk 1:31:22]}
28... Kc7 {[%clk 1:30:53]} 29. Rc2+ {[%clk 1:31:22]} 29... Kd6 {[%clk 1:30:53]}
 30. Rgxc8 {[%clk 1:31:22]} 30... e5 {[%clk 1:30:53]} 31. Re8 {[%clk
0:53:42][%emt 1:32:06]} 31... e4 {[%clk 1:04:36][%emt 0:00:27]} 32. Rd2+
{[%clk 0:53:47][%emt 0:00:25]} 32... Kc5 {[%clk 1:04:37][%emt 0:00:29]} 33.
Rc8+ {[%clk 0:54:13][%emt 0:00:05]} 1-0

[White "MICHELOTTI, Simon"]
[Black "TOURETTE, Maxence"]
[WhiteElo "1299"]
[BlackElo "1709"]
[Result "0-1"]
[Date "2026.03.05"]